[Event "Austria Championship Blitz 2024"]
[Site "Innsbruck"]
[Date "2024.06.01"]
[Round "6.22"]
[White "Wimmer, Michael"]
[Black "Wolfgang, Valentin"]
[Result "1-0"]
[ECO "B03"]
[WhiteElo "2142"]
[BlackElo "1866"]
[Annotator "RC"]
[PlyCount "43"]
[EventDate "2024.06.01"]
[EventType "swiss"]
[EventCountry "AUT"]
[SourceTitle "playchess.com"]
[Source "ChessBase"]
[SourceQuality "1"]
[TimeControl "180+2"]

1. e4 {[%emt 0:00:03]} Nf6 {[%emt 0:00:01]} 2. e5 {[%emt 0:00:01]} Nd5 {[%emt 0:00:01]} 3. c4 {[%emt 0:00:02]} Nb6 {[%emt 0:00:01]} 4. d4 {[%emt 0:00:02]} d6 {[%emt 0:00:02]} 5. exd6 {[%emt 0:00:02]} exd6 {[%emt 0:00:01]} 6. Nc3 {[%emt 0:00:03]} Be7 {[%emt 0:00:02]} 7. Be3 {[%emt 0:00:03]} O-O {[%emt 0:00:05]} 8. Rc1 {[%emt 0:00:03]} Re8 {[%emt 0:00:06]} 9. Be2 {[%emt 0:00:04]} Nc6 {[%emt 0:00:21]} 10. Nf3 {[%emt 0:00:07]} Bg4 {[%emt 0:00:04]} 11. d5 {[%emt 0:00:24]} Bxf3 {[%emt 0:00:36]} 12. Bxf3 {[%emt 0:00:02]} Ne5 {[%emt 0:00:02]} 13. b3 {[%emt 0:00:03]} Nxf3+ {[%emt 0:00:31]} 14. Qxf3 {[%emt 0:00:03]} Bg5 {[%emt 0:00:03]} 15. O-O {[%emt 0:00:05]} Bxe3 {[%emt 0:00:17]} 16. fxe3 {[%emt 0:00:02]} Qd7 {[%emt 0:00:18]} 17. e4 {[%emt 0:00:09]} Re7 {[%emt 0:00:11]} 18. Rce1 {[%emt 0:00:07]} Rae8 {[%emt 0:00:03]} 19. a4 {[%emt 0:00:11]} f5 {[%emt 0:00:29]} 20. Qxf5 {[%emt 0:00:09]} Qxf5 {[%emt 0:00:02]} 21. Rxf5 {[%emt 0:00:02]} Rxe4 {[%emt 0:00:04]} 22. Rxe4 {[%emt 0:00:03]} 1-0

[Event "Austria Championship Blitz 2024"]
[Site "Innsbruck"]
[Date "2024.06.01"]
[Round "6.23"]
[White "Falkensteiner, Benjamin"]
[Black "Schwarz, Benedikt"]
[Result "0-1"]
[ECO "C11"]
[WhiteElo "1905"]
[BlackElo "1919"]
[Annotator "NA RC"]
[PlyCount "78"]
[EventDate "2024.06.01"]
[EventType "swiss"]
[EventCountry "AUT"]
[SourceTitle "playchess.com"]
[Source "ChessBase"]
[SourceQuality "1"]
[TimeControl "180+2"]

1. e4 {[%emt 0:00:01]} e6 {[%emt 0:00:01]} 2. Nf3 {[%emt 0:00:02]} d5 {[%emt 0:00:01]} 3. Nc3 {[%emt 0:00:01]} Nf6 {[%emt 0:00:02]} 4. e5 {[%emt 0:00:03]} Nfd7 {[%emt 0:00:01]} 5. d4 {[%emt 0:00:01]} c5 {[%emt 0:00:01]} 6. dxc5 {[%emt 0:00:22]} Bxc5 {[%emt 0:00:06]} 7. Bd3 {[%emt 0:00:21]} Nc6 {[%emt 0:00:09]} 8. Bf4 {[%emt 0:00:03]} a6 {[%emt 0:00:15]} 9. O-O {[%emt 0:00:11]} b5 {[%emt 0:00:04]} 10. a3 {[%emt 0:00:33]} h6 {[%emt 0:00:21]} 11. h3 {[%emt 0:00:38]} O-O {[%emt 0:00:02]} 12. Qd2 {[%emt 0:00:15]} Bb7 {[%emt 0:00:27]} 13. Bxh6 {[%emt 0:00:27]} Ncxe5 {[%emt 0:00:02]} 14. Nxe5 {[%emt 0:00:13]} Nxe5 {[%emt 0:00:04]} 15. Bf4 {[%emt 0:00:04]} Nxd3 16. Qxd3 {[%emt 0:00:01]} Qf6 {[%emt 0:00:17]} 17. Be3 {[%emt 0:00:04]} Bxe3 {[%emt 0:00:19]} 18. fxe3 {[%emt 0:00:03]} Qg5 {[%emt 0:00:07]} 19. Rf2 {[%emt 0:00:05]} Rac8 {[%emt 0:00:06]} 20. Qe2 {[%emt 0:00:02]} Rc4 {[%emt 0:00:05]} 21. Raf1 {[%emt 0:00:09]} f6 {[%emt 0:00:15]} 22. Qd3 {[%emt 0:00:01]} Bc6 {[%emt 0:00:07]} 23. b3 {[%emt 0:00:01]} Rh4 {[%emt 0:00:07]} 24. Kh2 {[%emt 0:00:03]} Be8 {[%emt 0:00:01]} 25. Ne2 {[%emt 0:00:01]} Qe5+ {[%emt 0:00:07]} 26. Kh1 {[%emt 0:00:03]} Rh6 {[%emt 0:00:03]} 27. Nf4 {[%emt 0:00:02]} g5 {[%emt 0:00:09]} 28. Ne2 {[%emt 0:00:04]} Bg6 {[%emt 0:00:01]} 29. Qd2 {[%emt 0:00:02]} g4 {[%emt 0:00:04]} 30. Ng1 {[%emt 0:00:03]} gxh3 {[%emt 0:00:02]} 31. Nxh3 {[%emt 0:00:01]} Bf5 {[%emt 0:00:04]} 32. Rf3 {[%emt 0:00:01]} Kg7 {[%emt 0:00:06]} 33. Qf2 {[%emt 0:00:02]} Rfh8 {[%emt 0:00:03]} 34. Rg3+ {[%emt 0:00:01]} Kf7 {[%emt 0:00:01]} 35. Qf3 {[%emt 0:00:02]} Be4 {[%emt 0:00:12]} 36. Qg4 {[%emt 0:00:05]} Rg6 {[%emt 0:00:06]} 37. Qe2 {[%emt 0:00:02]} Rxg3 {[%emt 0:00:02]} 38. Kg1 {[%emt 0:00:02]} Bxg2 39. Qxg2 {[%emt 0:00:02]} Rxg2+ {[%emt 0:00:03]} 0-1

[Event "Austria Championship Blitz 2024"]
[Site "Innsbruck"]
[Date "2024.06.01"]
[Round "6.24"]
[White "Gutmann, Alois"]
[Black "Hyassat, Milana"]
[Result "1-0"]
[ECO "A00"]
[WhiteElo "1985"]
[BlackElo "1761"]
[Annotator "NA RC"]
[PlyCount "78"]
[EventDate "2024.06.01"]
[EventType "swiss"]
[EventCountry "AUT"]
[SourceTitle "playchess.com"]
[Source "ChessBase"]
[SourceQuality "1"]
[TimeControl "180+2"]

1. Nc3 {[%emt 0:00:01]} d5 {[%emt 0:00:01]} 2. e4 {[%emt 0:00:01]} d4 {[%emt 0:00:02]} 3. Nce2 {[%emt 0:00:01]} e5 {[%emt 0:00:01]} 4. Nf3 {[%emt 0:00:01]} Nc6 {[%emt 0:00:03]} 5. Ng3 {[%emt 0:00:02]} Nf6 {[%emt 0:00:15]} 6. Bb5 {[%emt 0:00:02]} Bd6 {[%emt 0:00:24]} 7. d3 {[%emt 0:00:02]} Bd7 {[%emt 0:00:04]} 8. O-O {[%emt 0:00:11]} a6 {[%emt 0:00:15]} 9. Ba4 {[%emt 0:00:01]} b5 {[%emt 0:00:04]} 10. Bb3 {[%emt 0:00:01]} Na5 {[%emt 0:00:07]} 11. c3 {[%emt 0:00:21]} Nxb3 {[%emt 0:00:17]} 12. axb3 {[%emt 0:00:02]} c5 {[%emt 0:00:09]} 13. b4 {[%emt 0:00:01]} O-O {[%emt 0:00:04]} 14. bxc5 {[%emt 0:00:03]} Bxc5 {[%emt 0:00:01]} 15. Nxe5 {[%emt 0:00:06]} Re8 {[%emt 0:00:17]} 16. Nxd7 {[%emt 0:00:03]} Qxd7 {[%emt 0:00:00]} 17. Nf5 {[%emt 0:00:01]} Rad8 {[%emt 0:00:30]} 18. cxd4 {[%emt 0:00:41]} Bxd4 {[%emt 0:00:04]} 19. Rxa6 {[%emt 0:00:06]} Qb7 {[%emt 0:00:36]} 20. Rd6 {[%emt 0:00:29]} Be5 {[%emt 0:00:08]} 21. Rxd8 {[%emt 0:00:22]} Rxd8 {[%emt 0:00:22]} 22. Qb3 {[%emt 0:00:16]} h6 {[%emt 0:00:00]} 23. Be3 {[%emt 0:00:06]} Qb8 {[%emt 0:00:00]} 24. f4 {[%emt 0:00:07]} Bc7 {[%emt 0:00:00]} 25. Ne7+ {[%emt 0:00:06]} Kf8 {[%emt 0:00:00]} 26. Nd5 {[%emt 0:00:02]} Nxd5 {[%emt 0:00:06]} 27. exd5 {[%emt 0:00:02]} Bb6 {[%emt 0:00:01]} 28. Qb4+ {[%emt 0:00:03]} Kg8 {[%emt 0:00:02]} 29. Bxb6 {[%emt 0:00:04]} Qxb6+ {[%emt 0:00:01]} 30. Kh1 {[%emt 0:00:02]} Rxd5 {[%emt 0:00:01]} 31. Qe4 {[%emt 0:00:04]} Qd8 {[%emt 0:00:02]} 32. Rd1 {[%emt 0:00:09]} Rd4 {[%emt 0:00:01]} 33. Qf5 {[%emt 0:00:03]} Rd5 {[%emt 0:00:01]} 34. Qe4 {[%emt 0:00:06]} Rd4 {[%emt 0:00:01]} 35. Qe3 {[%emt 0:00:02]} Kf8 {[%emt 0:00:03]} 36. h3 {[%emt 0:00:02]} Qd6 {[%emt 0:00:03]} 37. Rc1 {[%emt 0:00:03]} g6 {[%emt 0:00:05]} 38. Rc8+ {[%emt 0:00:03]} Kg7 {[%emt 0:00:01]} 39. Qe8 {[%emt 0:00:07]} g5 {[%emt 0:00:08]} 1-0

[Event "Austria Championship Blitz 2024"]
[Site "Innsbruck"]
[Date "2024.06.01"]
[Round "7.1"]
[White "Schwabeneder, Florian"]
[Black "Platzgummer, Fabian"]
[Result "1/2-1/2"]
[ECO "B22"]
[WhiteElo "2405"]
[BlackElo "2311"]
[Annotator "RC"]
[PlyCount "51"]
[EventDate "2024.06.01"]
[EventType "swiss"]
[EventCountry "AUT"]
[SourceTitle "playchess.com"]
[Source "ChessBase"]
[SourceQuality "1"]
[TimeControl "180+2"]

1. e4 {[%emt 0:00:02]} c5 {[%emt 0:00:01]} 2. Nf3 {[%emt 0:00:02]} a6 {[%emt 0:00:01]} 3. c3 {[%emt 0:00:09]} d5 {[%emt 0:00:04]} 4. exd5 {[%emt 0:00:02]} Qxd5 {[%emt 0:00:01]} 5. d4 {[%emt 0:00:01]} Nf6 {[%emt 0:00:02]} 6. Be2 {[%emt 0:00:04]} e6 {[%emt 0:00:03]} 7. O-O {[%emt 0:00:03]} Nc6 {[%emt 0:00:01]} 8. Be3 {[%emt 0:00:09]} cxd4 {[%emt 0:00:02]} 9. cxd4 {[%emt 0:00:01]} Be7 {[%emt 0:00:07]} 10. Nc3 {[%emt 0:00:01]} Qd6 {[%emt 0:00:08]} 11. a3 {[%emt 0:00:02]} O-O {[%emt 0:00:05]} 12. Rc1 {[%emt 0:00:14]} Rd8 {[%emt 0:00:11]} 13. Qd2 {[%emt 0:00:11]} Nd5 {[%emt 0:00:33]} 14. Nxd5 {[%emt 0:00:17]} Qxd5 {[%emt 0:00:03]} 15. Bc4 {[%emt 0:00:08]} Qh5 {[%emt 0:00:14]} 16. Qe2 {[%emt 0:00:07]} Bf6 {[%emt 0:00:12]} 17. Rfd1 {[%emt 0:00:07]} Ne7 {[%emt 0:00:12]} 18. h3 {[%emt 0:00:43]} b5 {[%emt 0:00:30]} 19. Bd3 {[%emt 0:00:18]} Bb7 {[%emt 0:00:07]} 20. Ne5 {[%emt 0:00:10]} Qxe2 21. Bxe2 {[%emt 0:00:01]} Nd5 {[%emt 0:00:14]} 22. Nd3 {[%emt 0:00:16]} Nxe3 {[%emt 0:00:19]} 23. fxe3 {[%emt 0:00:02]} Bg5 {[%emt 0:00:01]} 24. Kf2 {[%emt 0:00:03]} Rac8 {[%emt 0:00:04]} 25. Nc5 {[%emt 0:00:06]} Rc7 {[%emt 0:00:13]} 26. Nxb7 {[%emt 0:00:08]} 1/2-1/2

[Event "Austria Championship Blitz 2024"]
[Site "Innsbruck"]
[Date "2024.06.01"]
[Round "7.2"]
[White "Horvath, Dominik"]
[Black "Shengelia, David"]
[Result "1-0"]
[ECO "B30"]
[WhiteElo "2554"]
[BlackElo "2465"]
[Annotator "TA"]
[PlyCount "81"]
[EventDate "2024.06.01"]
[EventType "swiss"]
[EventCountry "AUT"]
[SourceTitle "playchess.com"]
[Source "ChessBase"]
[SourceQuality "1"]
[TimeControl "180+2"]

{[%evp 9,81,33,39,27,39,41,45,12,9,5,0,0,0,0,18,0,0,-7,0,-51,-33,-64,0,-22,0,0,0,0,0,0,-7,-47,-14,-20,-20,-16,0,0,6,-8,-4,0,0,-12,0,0,4,4,110,125,114,115,111,99,379,378,533,383,381,363,365,366,358,360,1306,1290,1091,841,1205,1185,29990,29991,29996,5691]} 1. e4 {[%emt 0:00:00]} c5 {[%emt 0:00:01]} 2. Nf3 {[%emt 0:00:02]} Nc6 {[%emt 0:00:02]} 3. Bb5 {[%emt 0:00:01]} e6 {[%emt 0:00:01]} 4. O-O {[%emt 0:00:01]} Nd4 {[%emt 0:00:02]} 5. Nxd4 {[%emt 0:00:03]} cxd4 {[%emt 0:00:01]} 6. c3 {[%emt 0:00:03]} a6 {[%emt 0:00:05]} 7. Be2 {[%emt 0:00:01]} Bc5 {[%emt 0:00:03]} 8. b4 {[%emt 0:00:01] White is slightly better.} Ba7 {[%emt 0:00:04]} 9. Na3 {[%emt 0:00:02]} Ne7 {[%emt 0:00:06]} 10. Nc2 {[%emt 0:00:01]} d5 {[%emt 0:00:17]} 11. exd5 {[%emt 0:00:10]} Nxd5 {[%emt 0:00:04]} 12. Bb2 {[%emt 0:00:18]} O-O {[%emt 0:00:17]} 13. cxd4 {[%emt 0:00:07]} Bd7 {[%emt 0:00:03]} 14. Bf3 {[%emt 0:00:08]} ({White should play} 14. a4 $11) 14... Ba4 $15 {[%emt 0:00:04] aiming for ...Rc8.} 15. Qb1 {[%emt 0:00:26]} Rc8 {[%emt 0:02:22]} (15... Rb8 $5) 16. Ne3 {[%emt 0:00:13]} Nxb4 {[%emt 0:00:00]} 17. Ba3 {[%emt 0:00:03]} a5 {[%emt 0:00:00]} 18. Bxb4 {[%emt 0:00:05]} axb4 19. Qxb4 {[%emt 0:00:02]} Qxd4 {[%emt 0:00:00]} 20. Rab1 {[%emt 0:00:10][%cal Ba1b1,Bb1b4,Bb4b7][%mdl 32]} (20. Qxd4 {simplifies} Bxd4 21. Bxb7 Rc5 22. Rfc1) 20... Bc6 {[%emt 0:00:00]} 21. Bxc6 {[%emt 0:00:04]} (21. Qxd4 {simplifies} Bxd4 22. Bxc6 bxc6 23. a3) 21... bxc6 {[%emt 0:00:00]} 22. Rfc1 {[%emt 0:00:39]} Qxb4 {[%emt 0:00:00]} 23. Rxb4 {[%emt 0:00:01]} Rfd8 {[%emt 0:00:00]} 24. Rb7 {[%emt 0:00:05]} Bd4 {[%emt 0:00:00]} 25. g3 {[%emt 0:00:09]} c5 {[%emt 0:00:00]} 26. Rc2 {[%emt 0:00:12]} g6 {[%emt 0:00:00]} 27. a4 {[%emt 0:00:02][%cal Ba2a4,Ba4a5][%mdl 32]} Ra8 {[%emt 0:00:00]} 28. Ra2 {[%emt 0:00:01]} Ra5 {[%emt 0:00:00]} (28... Bxe3 $1 $11 {keeps the balance.} 29. dxe3 Rdc8) 29. Nc4 $16 {[%emt 0:00:02]} Ra6 {[%emt 0:00:00]} 30. a5 {[%emt 0:00:01]} Bf6 {[%emt 0:00:05]} 31. Rb6 {[%emt 0:00:02]} Raa8 {[%emt 0:00:04][%mdl 8192] Black cannot hold the game after this.} (31... Rda8 $16 {is a better defense.} 32. Ra3 g5 33. Rxa6 Rxa6) 32. a6 $18 {[%emt 0:00:03]} Rd4 {[%emt 0:00:01] [#]} (32... Ra7 $142 33. Na5 Re8) 33. a7 $1 {[%emt 0:00:03]} Rxa7 {[%emt 0:00:02]} 34. Rxa7 {[%emt 0:00:02]} Rxc4 {[%emt 0:00:01][%mdl 4096] Endgame. KRR-KRB} 35. Rb8+ {[%emt 0:00:02]} Kg7 {[%emt 0:00:01]} 36. Rbb7 {[%emt 0:00:00]} Bd4 $2 {[%emt 0:00:13]} (36... g5 37. Rxf7+ Kg6) 37. Rxf7+ {[%emt 0:00:02]} Kh6 {[%emt 0:00:00]} 38. h4 {[%emt 0:00:03][%csl Ga7][%cal Rf7h7] [#]} Kh5 {[%emt 0:00:02]} 39. Kg2 {[%emt 0:00:08][%cal Og2h3] White threatens Kh3! and mate.} h6 {[%emt 0:00:01]} 40. Kh3 {[%emt 0:00:09][%csl Gh3][%cal Rg3g4]} Be5 {[%emt 0:00:08]} 41. f3 {[%emt 0:00:02] Weighted Error Value: White=0.14 (very precise) /Black=0.47.  Loses game:     	---       	Black=1      Mistake:       	White=1     	Black=3      Inaccurate:     	White=2     	Black=2      OK:         	White=10    	Black=10     Best:        	White=5     	Black=2} (41. f4 $142 Rxf4 42. Rxf4 g5 43. g4+ Kg6 44. h5#) 1-0

[Event "Austria Championship Blitz 2024"]
[Site "Innsbruck"]
[Date "2024.06.01"]
[Round "7.3"]
[White "Kruckenhauser, Arthur"]
[Black "Lerch, Johannes"]
[Result "1/2-1/2"]
[ECO "A46"]
[WhiteElo "2340"]
[BlackElo "2208"]
[Annotator "RC"]
[PlyCount "61"]
[EventDate "2024.06.01"]
[EventType "swiss"]
[EventCountry "AUT"]
[SourceTitle "playchess.com"]
[Source "ChessBase"]
[SourceQuality "1"]
[TimeControl "180+2"]

1. d4 {[%emt 0:00:01]} Nf6 {[%emt 0:00:01]} 2. Nf3 {[%emt 0:00:01]} d6 {[%emt 0:00:01]} 3. Nc3 {[%emt 0:00:04]} d5 {[%emt 0:00:02]} 4. Bf4 {[%emt 0:00:04]} a6 {[%emt 0:00:01]} 5. e3 {[%emt 0:00:11]} Bf5 {[%emt 0:00:07]} 6. Bd3 {[%emt 0:00:01]} Bxd3 7. Qxd3 {[%emt 0:00:01]} Nbd7 {[%emt 0:00:09]} 8. e4 {[%emt 0:00:05]} dxe4 9. Nxe4 {[%emt 0:00:01]} e6 {[%emt 0:00:07]} 10. O-O {[%emt 0:00:07]} Be7 {[%emt 0:00:01]} 11. c4 {[%emt 0:00:19]} O-O {[%emt 0:00:02]} 12. Rad1 {[%emt 0:00:03]} Nxe4 {[%emt 0:00:05]} 13. Qxe4 {[%emt 0:00:01]} c6 {[%emt 0:00:03]} 14. b3 {[%emt 0:00:04]} Nf6 {[%emt 0:00:01]} 15. Qc2 {[%emt 0:00:02]} Qa5 {[%emt 0:00:11]} 16. Rfe1 {[%emt 0:00:07]} Bb4 {[%emt 0:00:13]} 17. Re5 {[%emt 0:00:05]} Qd8 {[%emt 0:00:07]} 18. Rg5 {[%emt 0:00:38]} Re8 {[%emt 0:00:14]} 19. Be5 {[%emt 0:00:04]} Bf8 {[%emt 0:00:05]} 20. Qd2 {[%emt 0:00:08]} Nd7 {[%emt 0:00:27]} 21. Bg3 {[%emt 0:00:20]} Be7 {[%emt 0:00:15]} 22. Rh5 {[%emt 0:00:21]} Nf6 {[%emt 0:00:06]} 23. Re5 {[%emt 0:00:03]} Bd6 {[%emt 0:00:03]} 24. Ree1 {[%emt 0:00:02]} Bxg3 {[%emt 0:00:07]} 25. hxg3 {[%emt 0:00:03]} Qc7 {[%emt 0:00:01]} 26. Qe3 {[%emt 0:00:21]} Rad8 {[%emt 0:00:03]} 27. Rd2 {[%emt 0:00:01]} Rd7 {[%emt 0:00:02]} 28. Ne5 {[%emt 0:00:04]} Rdd8 {[%emt 0:00:03]} 29. Nf3 {[%emt 0:00:01]} Rd7 {[%emt 0:00:01]} 30. Ne5 {[%emt 0:00:05]} Rdd8 {[%emt 0:00:01]} 31. Nf3 {[%emt 0:00:02]} 1/2-1/2

[Event "Austria Championship Blitz 2024"]
[Site "Innsbruck"]
[Date "2024.06.01"]
[Round "7.4"]
[White "Balint, Peter"]
[Black "Blohberger, Felix"]
[Result "1/2-1/2"]
[ECO "C48"]
[WhiteElo "2343"]
[BlackElo "2506"]
[Annotator "RC"]
[PlyCount "183"]
[EventDate "2024.06.01"]
[EventType "swiss"]
[EventCountry "AUT"]
[SourceTitle "playchess.com"]
[Source "ChessBase"]
[SourceQuality "1"]
[TimeControl "180+2"]

1. e4 {[%emt 0:00:01]} e5 {[%emt 0:00:01]} 2. Nf3 {[%emt 0:00:00]} Nc6 {[%emt 0:00:01]} 3. Bb5 {[%emt 0:00:03]} Nf6 {[%emt 0:00:02]} 4. Nc3 {[%emt 0:00:18]} Bd6 {[%emt 0:00:09]} 5. d3 {[%emt 0:00:20]} O-O {[%emt 0:00:02]} 6. Ne2 {[%emt 0:00:12]} Re8 {[%emt 0:00:06]} 7. Ng3 {[%emt 0:00:04]} a6 {[%emt 0:00:16]} 8. Ba4 {[%emt 0:00:02]} b5 {[%emt 0:00:06]} 9. Bb3 {[%emt 0:00:01]} Na5 {[%emt 0:00:01]} 10. O-O {[%emt 0:00:09]} Nxb3 {[%emt 0:00:02]} 11. axb3 {[%emt 0:00:01]} Bf8 {[%emt 0:00:03]} 12. c4 {[%emt 0:00:12]} Rb8 {[%emt 0:00:11]} 13. Qe2 {[%emt 0:00:03]} d6 {[%emt 0:00:02]} 14. h3 {[%emt 0:00:07]} h6 {[%emt 0:00:03]} 15. Rd1 {[%emt 0:00:03]} c5 {[%emt 0:00:09]} 16. Nf1 {[%emt 0:00:17]} g6 {[%emt 0:00:06]} 17. Ne3 {[%emt 0:00:10]} Bg7 {[%emt 0:00:01]} 18. Nd5 {[%emt 0:00:38]} Nxd5 {[%emt 0:00:02]} 19. cxd5 {[%emt 0:00:00]} f5 {[%emt 0:00:10]} 20. Bd2 {[%emt 0:00:02]} b4 {[%emt 0:00:07]} 21. Nh2 {[%emt 0:00:21]} f4 {[%emt 0:00:17]} 22. f3 {[%emt 0:00:01]} h5 {[%emt 0:00:05]} 23. Be1 {[%emt 0:00:01]} Bf6 {[%emt 0:00:12]} 24. Qf2 {[%emt 0:00:14]} a5 {[%emt 0:00:07]} 25. Kf1 {[%emt 0:00:01]} Bd7 {[%emt 0:00:03]} 26. Ke2 {[%emt 0:00:02]} Ra8 {[%emt 0:00:01]} 27. Nf1 {[%emt 0:00:07]} a4 {[%emt 0:00:04]} 28. bxa4 {[%emt 0:00:04]} Bxa4 {[%emt 0:00:02]} 29. Rdc1 {[%emt 0:00:00]} Ra6 {[%emt 0:00:23]} 30. Nd2 {[%emt 0:00:03]} Qd7 {[%emt 0:00:10]} 31. Nc4 {[%emt 0:00:12]} Rea8 {[%emt 0:00:02]} 32. Kf1 {[%emt 0:00:06]} Bc2 {[%emt 0:00:13]} 33. Nb6 {[%emt 0:00:06]} Bxd3+ {[%emt 0:00:08]} 34. Kg1 {[%emt 0:00:01]} Qb7 {[%emt 0:00:06]} 35. Nxa8 {[%emt 0:00:01]} Qxa8 {[%emt 0:00:01]} 36. Rxa6 {[%emt 0:00:02]} Qxa6 {[%emt 0:00:01]} 37. Qd2 {[%emt 0:00:02]} g5 {[%emt 0:00:10]} 38. g3 {[%emt 0:00:01]} fxg3 {[%emt 0:00:12]} 39. Bxg3 {[%emt 0:00:01]} h4 {[%emt 0:00:03]} 40. Bf2 {[%emt 0:00:01]} Be2 {[%emt 0:00:15]} 41. Kg2 {[%emt 0:00:08]} Kf7 {[%emt 0:00:01]} 42. Be3 {[%emt 0:00:01]} Qd3 {[%emt 0:00:03]} 43. Qxd3 {[%emt 0:00:04]} Bxd3 {[%emt 0:00:01]} 44. Kf2 {[%emt 0:00:01]} Be7 {[%emt 0:00:03]} 45. Bd2 {[%emt 0:00:01]} Bb5 {[%emt 0:00:02]} 46. Ra1 {[%emt 0:00:01]} Bd7 {[%emt 0:00:03]} 47. Ra7 {[%emt 0:00:01]} Ke8 {[%emt 0:00:01]} 48. Ra8+ {[%emt 0:00:02]} Kf7 {[%emt 0:00:00]} 49. Rb8 {[%emt 0:00:01]} Bxh3 {[%emt 0:00:03]} 50. Rb7 {[%emt 0:00:02]} Ke8 {[%emt 0:00:01]} 51. Be3 {[%emt 0:00:08]} Bd7 {[%emt 0:00:03]} 52. Bd2 {[%emt 0:00:01]} Kd8 {[%emt 0:00:01]} 53. Ra7 {[%emt 0:00:01]} Ke8 {[%emt 0:00:04]} 54. Ra8+ {[%emt 0:00:02]} Kf7 {[%emt 0:00:01]} 55. Rh8 {[%emt 0:00:02]} Kg7 {[%emt 0:00:03]} 56. Rb8 {[%emt 0:00:03]} Kf7 {[%emt 0:00:02]} 57. Rb7 {[%emt 0:00:01]} Ke8 {[%emt 0:00:02]} 58. Ra7 {[%emt 0:00:01]} g4 {[%emt 0:00:03]} 59. fxg4 {[%emt 0:00:02]} Bxg4 {[%emt 0:00:01]} 60. Ra8+ {[%emt 0:00:04]} Kf7 {[%emt 0:00:02]} 61. Ra7 {[%emt 0:00:01]} Kf6 {[%emt 0:00:03]} 62. Kg2 {[%emt 0:00:02]} h3+ {[%emt 0:00:03]} 63. Kg3 {[%emt 0:00:01]} h2 {[%emt 0:00:01]} 64. Ra1 {[%emt 0:00:03]} Be2 {[%emt 0:00:03]} 65. Rh1 {[%emt 0:00:02]} Bd3 {[%emt 0:00:01]} 66. Kf3 {[%emt 0:00:01]} Kf7 {[%emt 0:00:04]} 67. Rxh2 {[%emt 0:00:01]} Bb1 {[%emt 0:00:02]} 68. Ke3 {[%emt 0:00:01]} Bg5+ {[%emt 0:00:01]} 69. Kf3 {[%emt 0:00:03]} Be7 {[%emt 0:00:02]} 70. Rh1 {[%emt 0:00:02]} Bc2 {[%emt 0:00:01]} 71. Rc1 {[%emt 0:00:02]} Bd3 {[%emt 0:00:01]} 72. Ra1 {[%emt 0:00:02]} Bc2 {[%emt 0:00:03]} 73. Ra7 {[%emt 0:00:01]} Ke8 {[%emt 0:00:03]} 74. Ra1 {[%emt 0:00:03]} Bd3 {[%emt 0:00:02]} 75. Re1 {[%emt 0:00:02]} Kf7 {[%emt 0:00:02]} 76. Kg4 {[%emt 0:00:02]} Bb5 {[%emt 0:00:02]} 77. Kg3 {[%emt 0:00:04]} Bd3 {[%emt 0:00:01]} 78. Re3 {[%emt 0:00:02]} Bc2 {[%emt 0:00:04]} 79. Re1 {[%emt 0:00:04]} Bd3 {[%emt 0:00:01]} 80. Kf3 {[%emt 0:00:01]} Bc2 {[%emt 0:00:02]} 81. Rc1 {[%emt 0:00:01]} Bd3 {[%emt 0:00:01]} 82. Ra1 {[%emt 0:00:01]} Bc2 {[%emt 0:00:02]} 83. Ra6 {[%emt 0:00:01]} Bd3 {[%emt 0:00:03]} 84. Rb6 {[%emt 0:00:01]} Bc2 {[%emt 0:00:02]} 85. Be1 {[%emt 0:00:01]} Bd1+ {[%emt 0:00:01]} 86. Ke3 {[%emt 0:00:02]} Bc2 {[%emt 0:00:02]} 87. Rb7 {[%emt 0:00:03]} Ke8 {[%emt 0:00:01]} 88. Bg3 {[%emt 0:00:03]} Bg5+ {[%emt 0:00:01]} 89. Kf3 {[%emt 0:00:02]} Bd1+ {[%emt 0:00:01]} 90. Kf2 {[%emt 0:00:01]} Bc2 {[%emt 0:00:02]} 91. Kf3 {[%emt 0:00:01]} Bd1+ {[%emt 0:00:03]} 92. Kf2 {[%emt 0:00:01]} 1/2-1/2